bitfinex-derivatives/quotes_SOLF0:USTF0_20260220
["timestamp","ask_amount","ask_price","bid_price","bid_amount"]
[1771618725408,3.54728699,84.89,84.852,9.22050168]
[1771618726406,10.6054,84.888,84.852,9.22050168]
[1771618727410,3.54728699,84.89,84.852,9.22050168]
[1771618727609,10.6043,84.897,84.852,9.22050168]
[1771618730807,10.603,84.907,84.858,9.04332111]
[1771618731110,3.54728699,84.91,84.858,9.04332111]
[1771618731312,3.54728699,84.9,84.858,9.04332111]
[1771618733511,10.6033,84.905,84.858,9.04332111]
[1771618734213,3.54728699,84.91,84.861,9.00893751]
[1771618735011,10.6027,84.909,84.863,9.0097059]
[1771618735211,3.54728699,84.91,84.863,9.0097059]
[1771618736315,10.6035,84.903,84.863,9.0097059]
[1771618737213,10.6042,84.897,84.851,9.01684354]
[1771618737411,3.54728699,84.9,84.851,9.01684354]
[1771618738014,10.604,84.899,84.853,9.01686751]
[1771618738414,3.55414076,84.9,84.853,9.01686751]
[1771618739419,3.55414076,84.91,84.853,9.01686751]
[1771618739919,3.55414076,84.9,84.855,9.01955259]
[1771618740419,3.55414076,84.89,84.855,9.01955259]
[1771618741921,10.6045,84.895,84.855,9.01955259]
[1771618744822,10.6052,84.89,84.855,9.01955259]
[1771618746825,10.6052,84.89,84.85,14.16414076]
[1771618746826,10.6039,84.9,84.861,8.98742417]
[1771618748831,10.6045,84.895,84.861,8.98742417]
[1771618751638,10.6031,84.906,84.871,9.06440914]
[1771618752836,10.6031,84.906,84.872,9.08496525]
[1771618753232,3.55414076,84.93,84.882,9.08498155]
[1771618753434,3.55414076,84.94,84.882,9.08498155]
[1771618753932,3.55414076,84.94,84.888,9.08498155]
[1771618754134,3.55414076,84.94,84.891,9.08498155]
[1771618754935,10.6,84.931,84.891,9.08498155]
[1771618756231,10.6,84.931,84.88,3.55414076]
[1771618756232,10.6005,84.927,84.88,3.55414076]
[1771618756431,10.6005,84.927,84.879,9.13646261]
[1771618756936,3.55414076,84.93,84.882,9.06728754]
[1771618759335,10.6002,84.929,84.882,9.06728754]
[1771618762142,10.601,84.923,84.882,9.06728754]
[1771618764443,10.6017,84.917,84.882,9.06728754]
[1771618764843,10.6027,84.909,84.871,9.06738494]
[1771618766242,10.6019,84.916,84.871,9.06738494]
[1771618766446,10.6019,84.916,84.881,9.03976156]
[1771618766739,3.55414076,84.94,84.881,9.03976156]
[1771618767634,10.6001,84.93,84.886,10.6056]
[1771618767836,10.6001,84.93,84.891,9.039777]
[1771618768444,10.5994,84.936,84.891,9.039777]
[1771618772144,10.5994,84.936,84.866,14.42341711]
[1771618772145,3.55414076,84.93,84.88,9.10429319]
[1771618772746,3.55414076,84.92,84.88,9.10429319]
[1771618773046,3.55414076,84.93,84.88,9.10429319]
[1771618774749,10.6008,84.925,84.88,9.10429319]
[1771618776050,10.6008,84.925,84.88,12.65843395]
[1771618776350,10.6008,84.925,84.881,9.01480662]
[1771618779052,10.6015,84.919,84.881,9.01480662]
[1771618780056,3.55414076,84.92,84.881,9.01480662]
[1771618782160,10.6007,84.926,84.881,9.01480662]
[1771618784561,10.6015,84.919,84.881,9.01480662]
[1771618785050,3.55414076,84.93,84.881,9.01480662]
[1771618786661,10.6004,84.928,84.882,10.6061]
[1771618786857,10.6004,84.928,84.883,9.04598899]
[1771618789664,3.55414076,84.94,84.88,3.55414076]
[1771618789665,3.55414076,84.94,84.891,9.07935047]
[1771618790666,10.5991,84.938,84.891,9.07935047]
[1771618791367,10.5981,84.947,84.901,9.06937531]
[1771618791865,3.55414076,84.96,84.911,9.06937531]
[1771618792064,3.55414076,84.97,84.911,9.06937531]
[1771618792366,3.55414076,84.96,84.911,9.06937531]
[1771618793557,3.55414076,84.97,84.911,9.06937531]
[1771618793757,10.5965,84.959,84.911,9.06937531]
[1771618797570,10.5974,84.952,84.911,9.06937531]
[1771618799171,10.5965,84.959,84.911,9.06937531]
[1771618800664,10.5953,84.969,84.92,3.54975559]
[1771618800870,3.54975559,84.97,84.921,9.04915322]
[1771618801164,10.5969,84.956,84.921,9.04915322]
[1771618801362,3.54975559,84.95,84.908,9.04916205]
[1771618801762,10.5985,84.944,84.908,9.04916205]
[1771618801959,3.54975559,84.94,84.893,9.04916205]
[1771618802165,21.1892,84.974,84.87,21.92028814]
[1771618802166,3.54975559,84.93,84.884,20.00930612]
[1771618802567,3.54975559,84.93,84.885,9.05405099]
[1771618803069,10.6004,84.928,84.885,9.05405099]
[1771618804067,10.6011,84.922,84.885,9.05405099]
[1771618804465,3.54975559,84.93,84.876,10.96014407]
[1771618804466,3.54975559,84.92,84.876,10.96014407]
[1771618804667,3.54975559,84.92,84.874,9.0739274]
[1771618804971,3.54975559,84.91,84.864,10.96014407]
[1771618805171,3.54975559,84.91,84.864,20.03407147]
[1771618805673,10.6035,84.903,84.865,9.07393695]
[1771618806074,3.54975559,84.92,84.871,9.07393695]
[1771618807669,10.6016,84.918,84.871,9.07393695]
[1771618809372,3.54975559,84.94,84.89,3.54975559]
[1771618809571,235.52,84.971,84.879,9.18357943]
[1771618809572,3.54975559,84.93,84.879,9.18357943]
[1771618810565,3.54975559,84.93,84.881,9.1221435]
[1771618810765,10.6005,84.927,84.881,9.1221435]
[1771618812471,10.5996,84.935,84.889,9.18851574]
[1771618813370,21.1912,84.967,84.889,9.18851574]
[1771618813371,10.6006,84.926,84.889,9.18851574]
[1771618815276,10.5992,84.937,84.891,9.19159063]
[1771618816077,10.6,84.931,84.891,9.19159063]
[1771618816467,3.54975559,84.93,84.879,9.24612062]
[1771618817772,10.6007,84.926,84.879,9.24612062]
[1771618818370,14.64070866,84.962,84.875,10.6069]
[1771618818371,10.5993,84.937,84.891,9.22584356]
[1771618818576,3.54975559,84.95,84.891,9.22584356]
[1771618819471,10.5992,84.938,84.891,9.22584356]
[1771618819677,10.5992,84.938,84.87,14.61352543]
[1771618819678,3.54975559,84.93,84.877,9.22584794]
[1771618819880,3.54975559,84.92,84.877,9.22584794]
[1771618820275,10.6016,84.919,84.877,9.22584794]
[1771618820671,3.54975559,84.92,84.877,9.22584794]
[1771618821781,10.6007,84.926,84.877,9.22584794]
[1771618823283,10.6007,84.926,84.881,9.13878055]
[1771618824384,10.6013,84.921,84.881,9.13878055]
[1771618826095,10.6004,84.928,84.881,9.13878055]
[1771618826793,10.6004,84.928,84.891,9.14218194]
[1771618827394,3.54975559,84.93,84.881,9.14218827]
[1771618827588,3.54975559,84.92,84.881,9.14218827]
[1771618827993,3.54975559,84.93,84.881,9.14218827]
[1771618828887,3.54975559,84.93,84.868,9.15349933]
[1771618829092,3.54975559,84.92,84.868,9.15349933]
[1771618831695,10.6018,84.917,84.868,9.15349933]
[1771618831895,3.54975559,84.91,84.868,9.15349933]
[1771618833193,3.54975559,84.91,84.854,10.96788303]
[1771618833391,3.54975559,84.91,84.85,3.54975559]
[1771618833392,3.54975559,84.91,84.855,9.10765149]
[1771618833588,10.6034,84.904,84.855,9.10765149]
[1771618834193,3.54975559,84.91,84.863,9.10765149]
[1771618834396,3.54975559,84.92,84.87,3.54975559]
[1771618834595,3.54975559,84.93,84.871,9.1075818]
[1771618834796,3.54975559,84.92,84.871,9.1075818]
[1771618835091,3.54975559,84.9,84.858,9.1075818]
[1771618836594,10.604,84.899,84.858,9.1075818]
[1771618840095,10.6049,84.892,84.858,9.1075818]
[1771618843400,10.604,84.899,84.858,9.1075818]
[1771618843991,10.603,84.907,84.861,9.08037417]
[1771618844191,3.54975559,84.92,84.861,9.08037417]
[1771618844598,3.54975559,84.92,84.86,3.54975559]
[1771618844599,3.54975559,84.92,84.863,9.08072844]
[1771618845202,10.6029,84.908,84.863,9.08072844]
[1771618845400,10.6029,84.908,84.864,9.08073553]
[1771618845901,10.6021,84.915,84.865,9.08073553]
[1771618846697,10.6021,84.915,84.87,3.54975559]
[1771618846902,10.6021,84.915,84.871,9.13459629]
[1771618850900,3.54975559,84.92,84.871,9.13459629]
[1771618850901,10.603,84.907,84.871,9.13459629]
[1771618851105,21.1968,84.944,84.86,9.10803889]
[1771618851106,3.54975559,84.9,84.86,9.10803889]
[1771618851800,3.54975559,84.91,84.86,9.10803889]
[1771618852706,14.15235559,84.91,84.86,9.10803889]
[1771618853400,3.54975559,84.9,84.86,9.10803889]
[1771618854206,21.1968,84.944,84.848,10.96788303]
[1771618854207,3.54975559,84.94,84.89,3.54975559]
[1771618854502,3.54975559,84.93,84.887,9.13696457]
[1771618854704,3.54975559,84.92,84.872,9.11931597]
[1771618855099,3.54975559,84.92,84.843,21.92028814]
[1771618855100,3.54975559,84.91,84.859,20.09545285]
[1771618855299,3.54975559,84.91,84.859,9.11931597]
[1771618858511,3.54975559,84.91,84.861,9.15912976]
[1771618860006,3.55349937,84.91,84.861,9.15912976]
[1771618861011,10.6028,84.909,84.861,9.15912976]
[1771618861210,35.36,84.933,84.861,9.15912976]
[1771618861211,3.55349937,84.9,84.861,9.15912976]
[1771618862707,35.36,84.929,84.861,9.15912976]
[1771618862708,10.6031,84.907,84.861,9.15912976]
[1771618865208,3.55349937,84.91,84.861,9.15912976]
[1771618865412,10.602,84.915,84.867,9.18606577]
[1771618866312,10.602,84.915,84.868,9.18568423]
[1771618867210,10.6029,84.908,84.868,9.18568423]
[1771618868619,10.6029,84.908,84.848,14.64765605]
[1771618868620,3.55349937,84.9,84.856,20.09168389]
[1771618868917,3.55349937,84.9,84.856,9.11554701]
[1771618869415,3.55349937,84.9,84.856,20.09168389]
[1771618870311,3.55349937,84.9,84.857,9.00647642]
[1771618870514,10.6028,84.909,84.861,9.00647642]
[1771618870818,3.55349937,84.93,84.871,9.00647642]
[1771618871414,10.601,84.923,84.872,9.00648125]
[1771618871616,3.55349937,84.93,84.875,9.00648125]
[1771618871808,3.55349937,84.94,84.881,9.00648125]
[1771618872015,10.5998,84.933,84.882,9.00648125]
[1771618873021,3.55349937,84.94,84.892,9.05104138]
[1771618873622,3.55349937,84.93,84.892,9.05104138]
[1771618875420,3.55349937,84.92,84.874,10.97613688]
[1771618876222,3.55349937,84.91,84.874,10.97613688]
[1771618876522,3.55349937,84.91,84.866,9.03511987]
[1771618877822,10.6028,84.908,84.866,9.03511987]
[1771618878424,3.55349937,84.9,84.866,9.03511987]
[1771618878630,3.55349937,84.9,84.857,10.97613688]
[1771618879230,10.604,84.899,84.857,10.97613688]
[1771618880231,10.604,84.899,84.857,20.0301479]
[1771618880430,10.604,84.899,84.858,9.05404946]
[1771618887336,10.604,84.899,84.858,20.03018634]
[1771618888733,10.604,84.899,84.859,9.08772799]
[1771618891242,14.15859937,84.89,84.858,10.97613688]
[1771618891443,3.55349937,84.89,84.848,10.97613688]
[1771618891638,21.2044,84.914,84.841,10.97613688]
[1771618891639,3.55349937,84.87,84.841,10.97613688]
[1771618891944,3.55349937,84.87,84.833,9.09512874]
[1771618892532,3.55349937,84.86,84.821,10.97613688]
[1771618892732,3.55349937,84.86,84.819,9.10549152]
[1771618893541,3.55349937,84.88,84.821,9.10564841]
[1771618893738,3.55349937,84.88,84.831,9.10564841]
[1771618894843,3.55349937,84.88,84.832,9.13572254]
[1771618895741,10.6065,84.879,84.832,9.13572254]
[1771618898848,3.55349937,84.88,84.832,9.13572254]
[1771618900749,10.6066,84.878,84.832,9.13572254]
[1771618901851,3.55349937,84.89,84.841,9.12248299]
[1771618902152,3.55349937,84.89,84.803,21.92028814]
[1771618902153,3.55349937,84.85,84.807,9.12248299]
[1771618902348,3.55349937,84.83,84.782,9.1673254]
[1771618902551,3.55349937,84.82,84.782,9.1673254]
[1771618902851,3.55349937,84.82,84.737,21.92028814]
[1771618902852,10.98124939,84.861,84.791,9.1673254]
[1771618903042,3.55349937,84.83,84.791,9.1673254]
[1771618903242,186.1772,84.891,84.771,9.1673254]
[1771618903243,3.55349937,84.82,84.771,9.1673254]
[1771618903440,3.55349937,84.82,84.728,21.92028814]
[1771618903441,3.55349937,84.81,84.761,9.16743949]
[1771618903643,3.55349937,84.8,84.761,9.16743949]
[1771618905055,3.55349937,84.8,84.748,8.95246541]
[1771618905956,3.55349937,84.79,84.748,8.95246541]
[1771618906747,10.6183,84.785,84.748,8.95246541]
[1771618908159,165.0612,84.843,84.735,8.944208]
[1771618908160,10.6192,84.777,84.735,8.944208]
[1771618908453,10.6192,84.777,84.673,14.63742422]
[1771618908454,3.55349937,84.75,84.681,8.94932768]
[1771618908653,3.55349937,84.75,84.646,43.19148814]
[1771618908654,3.55349937,84.75,84.691,8.94932768]
[1771618908853,10.6228,84.749,84.701,8.94932768]
[1771618909046,3.55349937,84.74,84.701,8.94932768]
[1771618910158,3.55349937,84.73,84.671,8.94951524]
[1771618910455,3.55349937,84.72,84.671,8.94951524]
[1771618910659,11.87210077,84.745,84.671,8.94951524]
[1771618910660,3.55349937,84.71,84.671,8.94951524]
[1771618911055,10.6278,84.709,84.671,8.94951524]
[1771618911254,10.6278,84.709,84.651,9.02198285]
[1771618911656,11.87210077,84.745,84.64,3.55349937]
[1771618911657,3.55349937,84.69,84.64,3.55349937]
[1771618911855,165.2593,84.741,84.634,9.02213777]
[1771618911856,9.57068872,84.7,84.634,9.02213777]
[1771618912457,10.629,84.7,84.634,9.02213777]
[1771618912658,9.57068872,84.72,84.634,9.02213777]
[1771618913158,10.6261,84.723,84.641,9.01672328]
[1771618913552,10.6274,84.712,84.641,9.01672328]
[1771618913753,9.57068872,84.72,84.641,9.01672328]
[1771618914662,10.6266,84.718,84.644,9.18906122]
[1771618915565,10.6266,84.718,84.646,9.18915115]
[1771618917469,10.628,84.708,84.646,9.18915115]
[1771618917863,9.57068872,84.72,84.646,9.18915115]
[1771618918063,10.6265,84.719,84.646,9.18915115]
[1771618918670,10.6265,84.719,84.647,8.96136136]
[1771618919067,10.6252,84.73,84.651,8.96136136]
[1771618919266,9.57068872,84.74,84.661,8.96136136]
[1771618919467,9.57068872,84.76,84.661,8.96136136]
[1771618919767,9.57068872,84.74,84.663,8.96152322]
[1771618919968,9.56078297,84.74,84.663,8.96152322]
[1771618920570,10.6235,84.743,84.665,9.07069007]
[1771618920767,10.6235,84.743,84.671,9.07069007]
[1771618920963,9.56078297,84.74,84.671,9.07069007]
[1771618922778,10.6243,84.737,84.671,9.07069007]
[1771618923076,9.56078297,84.74,84.654,8.99705511]
[1771618923577,10.6259,84.724,84.654,8.99705511]
[1771618924672,10.6247,84.734,84.656,8.9969304]
[1771618924866,9.56078297,84.74,84.656,8.9969304]
[1771618927270,10.625,84.731,84.658,8.94378658]
[1771618928477,10.625,84.731,84.666,9.01963164]
[1771618928869,9.56078297,84.75,84.666,9.01963164]
[1771618929074,9.56078297,84.76,84.671,9.01963164]
[1771618930670,10.6227,84.75,84.688,8.82874829]
[1771618931578,9.56078297,84.76,84.69,8.82893173]
[1771618932771,10.6228,84.749,84.692,8.67866006]
[1771618932974,9.56078297,84.76,84.692,8.67866006]
[1771618933775,10.6218,84.757,84.694,8.67888406]
[1771618933975,3.56691049,84.75,84.7,3.56691049]
[1771618934277,3.56691049,84.75,84.693,10.6297]
[1771618934278,3.56691049,84.75,84.701,8.67888406]
[1771618937981,10.6218,84.757,84.701,8.67888406]
[1771618937982,3.56691049,84.74,84.701,8.67888406]
[1771618938180,3.56691049,84.75,84.701,8.67888406]
[1771618938982,3.56691049,84.75,84.635,35.36]
[1771618938983,3.56691049,84.73,84.688,8.67183398]
[1771618939877,3.56691049,84.74,84.688,8.67183398]
[1771618940079,3.56691049,84.73,84.688,8.67183398]
[1771618940483,3.56691049,84.72,84.688,8.67183398]
[1771618940878,10.6256,84.727,84.688,8.67183398]
[1771618941584,3.56691049,84.74,84.691,8.6406215]
[1771618943987,10.6235,84.743,84.691,8.6406215]
[1771618945483,3.56691049,84.75,84.701,8.69673256]
[1771618946485,10.6211,84.762,84.711,8.67404134]
[1771618946883,3.56691049,84.76,84.711,8.67404134]
[1771618947682,3.56691049,84.76,84.712,8.6742357]
[1771618948486,14.64070866,84.813,84.712,8.6742357]
[1771618948487,3.56691049,84.75,84.712,8.6742357]
[1771618948681,3.56691049,84.74,84.699,8.69606051]
[1771618949791,10.6236,84.743,84.699,8.69606051]
[1771618949989,11.52334056,84.774,84.701,8.69623979]
[1771618950180,3.56691049,84.76,84.701,8.69623979]
[1771618950385,10.6218,84.757,84.71,3.56691049]
[1771618950586,10.6218,84.757,84.711,8.67198083]
[1771618951087,14.18951049,84.75,84.711,8.67198083]
[1771618951390,3.56691049,84.74,84.691,8.67198083]
[1771618952298,46.24962255,84.774,84.686,9.11]
[1771618952299,12.04141307,84.774,84.7,3.56691049]
[1771618952487,3.56691049,84.76,84.701,8.69598325]
[1771618953689,10.6216,84.758,84.707,10.6279]
[1771618953890,10.6216,84.758,84.708,8.69615956]
[1771618954687,3.56691049,84.76,84.711,8.69465552]
[1771618954886,3.56691049,84.77,84.72,3.56691049]
[1771618955085,3.56691049,84.77,84.72,8.69465552]
[1771618955393,35.36,84.794,84.72,8.69465552]
[1771618955593,3.56691049,84.77,84.72,8.69465552]
[1771618956798,10.6203,84.769,84.72,8.69465552]
[1771618957185,10.6211,84.763,84.72,8.69465552]
[1771618957391,3.56691049,84.76,84.72,8.69465552]
[1771618957787,11.50861736,84.788,84.72,8.69465552]
[1771618957788,3.56691049,84.75,84.72,8.69465552]
[1771618958893,10.6217,84.757,84.72,8.69465552]
[1771618960199,3.56691049,84.75,84.72,8.69465552]
[1771618961801,10.6217,84.757,84.72,8.69465552]
[1771618963299,10.6234,84.744,84.707,8.77415551]
[1771618963599,11.50861736,84.788,84.686,9.11]
[1771618963600,3.56691049,84.74,84.694,8.77415551]
[1771618963905,3.56691049,84.73,84.694,8.77415551]
[1771618964107,10.6258,84.725,84.694,8.77415551]
[1771618965503,3.56691049,84.73,84.694,8.77415551]
[1771618967997,3.56691049,84.74,84.694,8.77415551]
[1771618968401,3.56691049,84.75,84.701,8.79181624]
[1771618968802,10.6229,84.748,84.701,8.79181624]
[1771618970409,3.56691049,84.74,84.701,8.79181624]
[1771618971404,35.36,84.779,84.701,8.79181624]
[1771618971405,3.56691049,84.75,84.701,8.79181624]
[1771618972809,10.6229,84.748,84.701,8.79181624]
[1771618974511,10.6229,84.748,84.703,8.76606229]
[1771618976212,3.56691049,84.75,84.703,8.76606229]
[1771618977212,3.56691049,84.75,84.704,8.76584375]
[1771618977412,3.56691049,84.76,84.704,8.76584375]
[1771618977609,3.56691049,84.76,84.711,8.76596354]
[1771618977809,68.10461736,84.788,84.711,8.76596354]
[1771618977810,3.56691049,84.75,84.711,8.76596354]
[1771618979717,10.6228,84.749,84.711,8.76596354]
[1771618979917,3.56748077,84.74,84.711,8.76596354]
[1771618980114,10.6228,84.749,84.711,8.76596354]
[1771618981621,10.6228,84.749,84.703,8.63896832]
[1771618982422,10.622,84.756,84.703,8.63896832]
[1771618983820,10.622,84.756,84.706,8.63854295]
[1771618984726,10.622,84.756,84.709,8.63764363]
[1771618986520,10.6228,84.749,84.709,8.63764363]
[1771618991023,3.56748077,84.75,84.709,8.63764363]
[1771618991229,3.56748077,84.74,84.702,11.11]
[1771618992718,10.6242,84.737,84.702,11.11]
[1771618993118,3.56748077,84.73,84.702,11.11]
[1771618994732,10.6253,84.729,84.702,11.11]
[1771619005642,10.6237,84.741,84.703,8.52179931]
[1771619005839,3.56748077,84.75,84.703,8.52179931]
[1771619006134,10.6245,84.735,84.703,8.52179931]
[1771619006839,10.6253,84.729,84.702,11.11]
[1771619009237,10.6245,84.736,84.703,8.52342381]
[1771619009537,21.92556485,84.773,84.703,8.52342381]
[1771619009538,3.56748077,84.75,84.703,8.52342381]
[1771619010737,10.6235,84.743,84.703,8.52342381]
[1771619010937,3.56748077,84.75,84.703,8.52342381]
[1771619011237,3.56748077,84.74,84.703,8.52342381]
[1771619011535,10.6241,84.738,84.703,8.52342381]
[1771619015438,10.6249,84.733,84.703,8.52342381]
[1771619015946,10.624,84.739,84.703,8.52342381]
[1771619022249,10.624,84.739,84.704,10.97]
[1771619026249,10.6233,84.745,84.705,8.53123978]
[1771619026451,3.56748077,84.76,84.705,8.53123978]
[1771619027653,10.6228,84.749,84.705,8.53123978]
[1771619028053,3.56748077,84.74,84.704,10.97]
[1771619028857,10.6255,84.727,84.704,10.97]
[1771619029249,3.56748077,84.74,84.704,10.97]
[1771619030755,10.6247,84.734,84.704,10.97]
[1771619032355,3.56748077,84.73,84.704,10.97]
[1771619032764,3.56748077,84.74,84.704,10.97]
[1771619033457,10.88962255,84.742,84.705,8.63568631]
[1771619033651,3.56748077,84.75,84.705,8.63568631]
[1771619034753,10.6238,84.741,84.705,8.63568631]
[1771619037158,10.623,84.748,84.705,8.63568631]
[1771619037858,10.88962255,84.755,84.705,8.63568631]
[1771619037859,10.6237,84.742,84.705,8.63568631]
[1771619038551,10.6225,84.751,84.705,8.63568631]
[1771619041449,3.56748077,84.76,84.705,8.63568631]
[1771619041658,10.88962255,84.769,84.721,8.60793212]
[1771619041855,10.88962255,84.774,84.721,8.60793212]
[1771619042254,10.88962255,84.776,84.721,8.60793212]
[1771619042758,3.56481029,84.78,84.73,3.56481029]
[1771619042960,14.64070866,84.801,84.721,8.60793212]
[1771619042961,3.56481029,84.79,84.741,8.58994239]
[1771619044664,3.56481029,84.78,84.741,8.58994239]
[1771619044964,3.56481029,84.77,84.721,8.61782321]
[1771619045254,3.56481029,84.78,84.721,8.61782321]
[1771619046259,10.6191,84.778,84.721,8.61782321]
[1771619047862,10.6201,84.771,84.721,8.61782321]
[1771619048160,3.56481029,84.77,84.721,8.61782321]
[1771619048764,3.56481029,84.76,84.721,8.61782321]
[1771619049563,3.56481029,84.76,84.704,10.97]
[1771619049564,10.6231,84.746,84.706,8.59059941]
[1771619049767,3.56481029,84.74,84.706,8.59059941]
[1771619053266,14.18881029,84.74,84.706,8.59059941]
[1771619053467,14.18881029,84.74,84.704,10.97]
[1771619053468,3.56481029,84.73,84.704,10.97]
[1771619054571,3.56481029,84.74,84.704,10.97]
[1771619054769,3.56481029,84.74,84.705,8.60936108]
[1771619060167,10.6229,84.748,84.705,8.60936108]
[1771619060572,10.622,84.755,84.705,8.60936108]
[1771619062071,10.622,84.755,84.707,8.66773305]
[1771619062271,10.6209,84.764,84.711,8.66773305]
[1771619062973,3.56481029,84.76,84.711,8.66773305]
[1771619063778,14.64070866,84.791,84.711,8.66773305]
[1771619063779,3.56481029,84.75,84.711,8.66773305]
[1771619064574,3.56481029,84.74,84.706,9.83]
[1771619065176,3.56481029,84.74,84.706,18.56143276]
[1771619065376,3.56481029,84.76,84.706,18.56143276]
[1771619065576,10.6237,84.742,84.707,8.73159978]
[1771619066176,10.6237,84.742,84.71,12.29641007]
[1771619068277,10.6237,84.742,84.71,8.73159978]
[1771619068572,10.6244,84.736,84.706,9.83]
[1771619069780,10.6236,84.743,84.706,9.83]
[1771619070470,10.6236,84.743,84.706,18.56143067]
[1771619073179,10.6236,84.743,84.707,8.73077619]
[1771619073375,10.6236,84.743,84.711,8.73077619]
[1771619074368,10.6226,84.751,84.711,8.73077619]
[1771619076080,10.6226,84.751,84.712,10.95]
[1771619076279,10.6226,84.751,84.713,8.72732963]
[1771619081689,10.6212,84.761,84.731,8.72739184]
[1771619082889,10.622,84.755,84.72,12.3210107]
[1771619083091,3.56481029,84.77,84.713,8.75620041]
[1771619083890,10.6227,84.75,84.713,8.75620041]
[1771619084085,3.56481029,84.78,84.721,8.75633232]
[1771619084893,10.6224,84.752,84.721,8.75633232]
[1771619086689,10.6212,84.762,84.721,8.75633232]
[1771619091095,10.6234,84.744,84.712,10.95]
[1771619091291,3.56481029,84.76,84.712,10.95]
[1771619092694,10.6236,84.743,84.712,10.95]
[1771619099503,10.6242,84.737,84.712,10.95]
[1771619099803,3.56481029,84.75,84.697,8.66368703]
[1771619100206,10.88962255,84.755,84.711,8.66368703]
[1771619100505,11.9917557,84.792,84.711,8.66368703]
[1771619100506,3.56481029,84.77,84.711,8.66368703]
[1771619100704,3.56481029,84.76,84.711,8.66368703]
[1771619100907,10.6242,84.738,84.711,8.66368703]
[1771619101299,10.6242,84.738,84.701,8.6676775]
[1771619101605,10.6242,84.738,84.674,14.6672437]
[1771619101606,10.6253,84.729,84.69,12.23260856]
[1771619101797,10.6253,84.729,84.691,8.66779827]
[1771619102512,10.6245,84.736,84.701,8.77579216]
[1771619102709,35.36,84.759,84.701,8.77579216]
[1771619103206,35.36,84.762,84.701,8.77579216]
[1771619103910,35.36,84.762,84.703,8.77589315]
[1771619104304,35.36,84.768,84.703,8.77589315]
[1771619104504,3.56828303,84.76,84.703,8.77589315]
[1771619104709,10.6236,84.743,84.703,8.77589315]
[1771619105105,3.56828303,84.76,84.703,8.77589315]
[1771619105411,10.6243,84.737,84.703,8.77589315]
[1771619105606,3.56828303,84.75,84.702,9.43]
[1771619106812,10.6244,84.736,84.702,9.43]
[1771619108317,3.56828303,84.74,84.68,3.56828303]
[1771619108515,3.56828303,84.74,84.681,8.68580276]
[1771619109117,10.6257,84.726,84.681,8.68580276]
[1771619110312,3.56828303,84.72,84.67,8.68590941]
[1771619110711,3.56828303,84.72,84.666,10.97613688]
[1771619110712,3.56828303,84.71,84.659,8.65724098]
[1771619110913,3.56828303,84.71,84.665,7.4]
[1771619111422,3.56828303,84.71,84.633,14.6672437]
[1771619111423,3.56828303,84.69,84.641,8.65734791]
[1771619112517,35.36,84.718,84.641,8.65734791]
[1771619112518,10.6297,84.694,84.641,8.65734791]
[1771619113023,3.56828303,84.7,84.641,8.65734791]
[1771619113024,10.6305,84.688,84.641,8.65734791]
[1771619113821,10.6294,84.696,84.641,8.65734791]
[1771619117227,10.6294,84.696,84.651,8.82811125]
[1771619117520,3.56828303,84.68,84.631,8.82818858]
[1771619117725,3.56828303,84.67,84.631,8.82818858]
[1771619118419,3.56828303,84.66,84.61,3.56828303]
[1771619118724,3.56828303,84.66,84.611,8.75036609]
[1771619119520,3.56828303,84.65,84.611,8.75036609]
[1771619120223,14.20348303,84.65,84.611,8.75036609]
[1771619120424,10.6352,84.65,84.611,8.75036609]
[1771619120628,3.56828303,84.64,84.596,8.79551467]
[1771619121626,10.6369,84.637,84.596,8.79551467]
[1771619122021,3.56828303,84.64,84.596,8.79551467]
[1771619122326,3.56828303,84.65,84.601,8.79559152]
[1771619122928,10.6353,84.649,84.601,8.79559152]
[1771619124630,3.56828303,84.65,84.601,8.79559152]
[1771619124929,10.6344,84.657,84.601,8.79559152]
[1771619125920,3.56828303,84.66,84.604,10.6409]
[1771619126120,3.56828303,84.66,84.611,8.78191804]
[1771619126528,10.6333,84.665,84.611,8.78191804]
[1771619126725,3.56828303,84.67,84.615,8.79069731]
[1771619126926,3.56828303,84.67,84.621,8.79069731]
[1771619129033,3.56828303,84.66,84.621,8.79069731]
[1771619131131,3.56828303,84.66,84.621,8.79069731]
[1771619131732,10.6341,84.658,84.621,8.79069731]
[1771619132133,3.56828303,84.66,84.621,8.79069731]
[1771619132335,3.56828303,84.65,84.621,8.79069731]
[1771619133134,3.56828303,84.65,84.601,8.7739335]
[1771619133533,11.88385671,84.678,84.601,8.7739335]
[1771619133738,3.56828303,84.67,84.621,8.77399841]
[1771619134532,3.56828303,84.65,84.608,8.80882981]
[1771619134739,3.56828303,84.64,84.608,8.80882981]